[Event "11th LCC FIDE Open 2019"]
[Site "London"]
[Date "2019.11.29"]
[Round "1.9"]
[White "Gormally, Daniel W"]
[Black "Walker, Samuel A"]
[Result "1-0"]
[ECO "D85"]
[WhiteElo "2491"]
[BlackElo "2039"]
[Annotator "RC"]
[PlyCount "47"]
[EventDate "2019.11.29"]
[EventType "swiss"]
[EventCountry "ENG"]
[SourceTitle "playchess.com"]
[Source "ChessBase"]
[SourceQuality "1"]
[TimeControl "40/5400+30:1800+30"]

1. d4 {[%emt 0:00:00]} Nf6 {[%emt 0:00:00]} 2. c4 {[%emt 0:00:00]} g6 {[%emt 0:00:06]} 3. Nc3 {[%emt 0:00:00]} d5 {[%emt 0:00:13]} 4. cxd5 {[%emt 0:00:02]} Nxd5 {[%emt 0:00:03]} 5. e4 {[%emt 0:00:11]} Nxc3 {[%emt 0:00:10]} 6. bxc3 {[%emt 0:00:05]} Bg7 {[%emt 0:00:11]} 7. Nf3 {[%emt 0:00:40]} c5 {[%emt 0:00:17]} 8. Rb1 {[%emt 0:00:07]} O-O {[%emt 0:01:22]} 9. Be2 {[%emt 0:00:07]} Nd7 {[%emt 0:00:38]} 10. O-O {[%emt 0:00:08]} Nf6 {[%emt 0:00:16]} 11. Bd3 {[%emt 0:00:34]} b6 {[%emt 0:02:43]} 12. Qe2 {[%emt 0:00:56]} e6 {[%emt 0:11:29]} 13. Bf4 {[%emt 0:14:04]} Re8 14. dxc5 {[%emt 0:00:19]} bxc5 15. Rfd1 {[%emt 0:08:27]} Bd7 {[%emt 0:16:24]} 16. h3 Ba4 {[%emt 0:00:00]} 17. Rdc1 Nh5 {[%emt 0:00:00]} 18. Be3 {[%emt 0:01:30]} e5 {[%emt 0:00:00]} 19. Bc4 {[%emt 0:00:30]} Re7 {[%emt 0:22:45]} 20. Bd5 {[%emt 0:13:11]} Rc8 {[%emt 0:03:41]} 21. Qa6 {[%emt 0:00:32]} Be8 {[%emt 0:00:49]} 22. Bg5 {[%emt 0:00:38]} Nf4 {[%emt 0:01:51]} 23. Bxe7 {[%emt 0:00:31]} Qxe7 {[%emt 0:00:06]} 24. Qxc8 {[%emt 0:00:06]} 1-0

[Event "11th LCC FIDE Open 2019"]
[Site "London"]
[Date "2019.11.29"]
[Round "1.12"]
[White "Flear, Christine"]
[Black "Arkell, Keith C"]
[Result "0-1"]
[ECO "A41"]
[WhiteElo "2035"]
[BlackElo "2445"]
[Annotator "ChessBase"]
[PlyCount "98"]
[EventDate "2019.11.29"]
[EventType "swiss"]
[EventCountry "ENG"]
[SourceTitle "playchess.com"]
[Source "ChessBase"]
[SourceQuality "1"]
[TimeControl "40/5400+30:1800+30"]

1. d4 {[%emt 0:00:00]} d6 {[%emt 0:00:00]} 2. Nf3 {[%emt 0:00:45]} Bg4 {[%emt 0:00:00]} 3. e3 {[%emt 0:00:20]} Nc6 {[%emt 0:00:03]} 4. h3 {[%emt 0:05:14]} Bd7 {[%emt 0:02:10]} 5. d5 {[%emt 0:12:16]} Ne5 {[%emt 0:00:06]} 6. Nxe5 {[%emt 0:01:00]} dxe5 {[%emt 0:00:06]} 7. Bc4 {[%emt 0:01:14]} Nf6 {[%emt 0:00:42]} 8. Nc3 {[%emt 0:02:16]} g6 {[%emt 0:00:44]} 9. g4 {[%emt 0:04:23]} h6 {[%emt 0:00:44]} 10. Qf3 {[%emt 0:14:28]} Bg7 {[%emt 0:00:27]} 11. Bd2 {[%emt 0:10:08]} a6 {[%emt 0:01:31]} 12. Rg1 {[%emt 0:05:00]} b5 {[%emt 0:01:36]} 13. Bb3 {[%emt 0:01:57]} Rc8 {[%emt 0:03:29]} 14. O-O-O {[%emt 0:04:42]} c5 {[%emt 0:02:04]} 15. dxc6 {[%emt 0:00:39]} Bxc6 {[%emt 0:00:04]} 16. e4 {[%emt 0:00:41]} Qc7 {[%emt 0:07:13]} 17. g5 {[%emt 0:06:31]} hxg5 {[%emt 0:00:23]} 18. Bxg5 {[%emt 0:00:05]} a5 {[%emt 0:03:26]} 19. Bxf6 {[%emt 0:06:56]} Bxf6 {[%emt 0:01:35]} 20. a4 {[%emt 0:01:04]} bxa4 {[%emt 0:00:32]} 21. Nxa4 {[%emt 0:00:14]} Rh7 {[%emt 0:22:57]} 22. Kb1 {[%emt 0:08:57]} Bd7 {[%emt 0:06:07]} 23. Rg3 {[%emt 0:03:39]} Be6 {[%emt 0:01:53]} 24. Rd2 {[%emt 0:01:53]} Qc6 {[%emt 0:05:07]} 25. Bxe6 {[%emt 0:02:59]} Qxe6 {[%emt 0:00:07]} 26. Nc3 {[%emt 0:01:06]} Kf8 {[%emt 0:00:42]} 27. Rd5 {[%emt 0:01:36]} Ra8 {[%emt 0:03:05]} 28. Qd3 {[%emt 0:00:47]} Kg7 {[%emt 0:00:23]} 29. Rd8 {[%emt 0:00:53]} Rxd8 {[%emt 0:01:45]} 30. Qxd8 {[%emt 0:00:02]} Rxh3 {[%emt 0:00:32]} 31. Rxh3 {[%emt 0:01:32]} Qxh3 {[%emt 0:00:06]} 32. Qxa5 {[%emt 0:00:16]} Qf1+ {[%emt 0:00:06]} 33. Ka2 {[%emt 0:00:05]} Qxf2 {[%emt 0:00:07]} 34. Qa4 {[%emt 0:00:55]} g5 {[%emt 0:00:07]} 35. Nd5 {[%emt 0:00:24]} e6 {[%emt 0:04:11]} 36. Nxf6 {[%emt 0:00:53]} Kxf6 {[%emt 0:00:10]} 37. Qc6 {[%emt 0:01:03]} g4 {[%emt 0:00:15]} 38. Qc7 {[%emt 0:00:14]} g3 {[%emt 0:01:04]} 39. Qd8+ {[%emt 0:00:17]} Kg6 {[%emt 0:00:06]} 40. Qg8+ {[%emt 0:00:31]} Kh5 {[%emt 0:00:06]} 41. Qh8+ {[%emt 0:09:07]} Kg4 {[%emt 0:00:15]} 42. Qxe5 {[%emt 0:00:22]} g2 {[%emt 0:00:15]} 43. Qg7+ {[%emt 0:00:19]} Kh3 {[%emt 0:00:42]} 44. Qh6+ {[%emt 0:01:29]} Qh4 {[%emt 0:00:29]} 45. Qe3+ {[%emt 0:00:57]} Qg3 {[%emt 0:06:50]} 46. Qh6+ {[%emt 0:01:46]} Kg4 {[%emt 0:00:08]} 47. Qg7+ {[%emt 0:00:10]} Kf3 {[%emt 0:00:07]} 48. Qc3+ {[%emt 0:01:54]} Kf4 {[%emt 0:01:07]} 49. Qd2+ {[%emt 0:05:16]} Kg4 {[%emt 0:00:25]} 0-1

[Event "11th LCC FIDE Open 2019"]
[Site "London"]
[Date "2019.11.29"]
[Round "1.13"]
[White "Fernandez, Daniel H"]
[Black "Bansal, Rohan"]
[Result "1-0"]
[ECO "E04"]
[WhiteElo "2444"]
[BlackElo "2018"]
[Annotator "ChessBase"]
[PlyCount "97"]
[EventDate "2019.11.29"]
[EventType "swiss"]
[EventCountry "ENG"]
[SourceTitle "playchess.com"]
[Source "ChessBase"]
[SourceQuality "1"]
[TimeControl "40/5400+30:1800+30"]

1. c4 {[%emt 0:00:00]} Nf6 {[%emt 0:00:00]} 2. g3 {[%emt 0:00:00]} e6 {[%emt 0:04:02]} 3. Bg2 {[%emt 0:01:36]} d5 {[%emt 0:03:20]} 4. Nf3 {[%emt 0:00:04]} Nc6 {[%emt 0:08:56]} 5. O-O {[%emt 0:00:44]} Bd6 {[%emt 0:11:42]} 6. d4 {[%emt 0:00:30]} dxc4 {[%emt 0:11:51]} 7. Nbd2 {[%emt 0:00:03]} O-O {[%emt 0:08:19]} 8. Nxc4 {[%emt 0:01:31]} Re8 {[%emt 0:07:26]} 9. Bf4 {[%emt 0:01:14]} Nd5 {[%emt 0:10:31]} 10. Qd2 {[%emt 0:00:57]} Bb4 {[%emt 0:06:24]} 11. Qd3 {[%emt 0:00:03]} Nxf4 {[%emt 0:05:37]} 12. gxf4 {[%emt 0:00:02]} Qf6 {[%emt 0:00:39]} 13. e3 {[%emt 0:00:04]} Qg6 {[%emt 0:02:21]} 14. Rfd1 {[%emt 0:00:32]} Be7 {[%emt 0:02:29]} 15. Qxg6 {[%emt 0:01:46]} hxg6 {[%emt 0:00:15]} 16. Rac1 {[%emt 0:00:06]} Nb4 {[%emt 0:01:28]} 17. a3 {[%emt 0:00:48]} Nd5 {[%emt 0:00:23]} 18. Na5 {[%emt 0:02:05]} c6 {[%emt 0:01:23]} 19. b4 {[%emt 0:00:15]} Rb8 {[%emt 0:02:02]} 20. Ne5 {[%emt 0:00:09]} Bd6 {[%emt 0:03:19]} 21. Kf1 {[%emt 0:00:27]} Bxe5 {[%emt 0:01:55]} 22. fxe5 {[%emt 0:00:12]} f6 {[%emt 0:00:31]} 23. Ke2 {[%emt 0:01:33]} Kf7 {[%emt 0:00:19]} 24. Nc4 {[%emt 0:00:09]} Ke7 {[%emt 0:00:28]} 25. h4 {[%emt 0:01:01]} Rh8 {[%emt 0:00:33]} 26. Rh1 {[%emt 0:00:32]} Bd7 {[%emt 0:00:47]} 27. Be4 {[%emt 0:00:24]} Rh6 {[%emt 0:00:59]} 28. Nd6 {[%emt 0:00:23]} b6 {[%emt 0:00:39]} 29. Rhg1 {[%emt 0:00:57]} f5 {[%emt 0:00:47]} 30. Bxd5 {[%emt 0:00:07]} cxd5 {[%emt 0:02:14]} 31. h5 {[%emt 0:00:07]} Rxh5 {[%emt 0:00:41]} 32. Rxg6 {[%emt 0:00:03]} Rh7 {[%emt 0:00:32]} 33. Rc7 {[%emt 0:00:11]} a5 {[%emt 0:01:50]} 34. Nxf5+ {[%emt 0:00:34]} Kd8 {[%emt 0:00:30]} 35. Ra7 {[%emt 0:00:03]} Bb5+ {[%emt 0:00:19]} 36. Kf3 {[%emt 0:00:28]} exf5 {[%emt 0:00:16]} 37. Kf4 {[%emt 0:00:16]} axb4 {[%emt 0:00:46]} 38. axb4 {[%emt 0:00:01]} Rh4+ {[%emt 0:01:28]} 39. Kg5 {[%emt 0:00:16]} Rg4+ {[%emt 0:00:31]} 40. Kxf5 {[%emt 0:00:02]} Bd3+ {[%emt 0:00:42]} 41. Kxg4 {[%emt 0:30:02]} Bxg6 {[%emt 0:30:21]} 42. Rxg7 {[%emt 0:00:11]} Be8 {[%emt 0:00:09]} 43. Kf5 {[%emt 0:00:27]} Rc8 {[%emt 0:00:16]} 44. e6 {[%emt 0:02:19]} Rc7 {[%emt 0:01:11]} 45. Rxc7 {[%emt 0:00:22]} Kxc7 {[%emt 0:00:17]} 46. Ke5 {[%emt 0:00:01]} Bc6 {[%emt 0:00:58]} 47. f4 {[%emt 0:00:03]} Bb7 {[%emt 0:00:29]} 48. f5 {[%emt 0:00:08]} Bc6 {[%emt 0:00:23]} 49. f6 {[%emt 0:00:05]} 1-0

[Event "11th LCC FIDE Open 2019"]
[Site "London"]
[Date "2019.11.29"]
[Round "1.14"]
[White "Penna, Tommaso"]
[Black "Hebden, Mark L"]
[Result "1/2-1/2"]
[ECO "C88"]
[WhiteElo "2007"]
[BlackElo "2436"]
[Annotator "RC"]
[PlyCount "134"]
[EventDate "2019.11.29"]
[EventType "swiss"]
[EventCountry "ENG"]
[SourceTitle "playchess.com"]
[Source "ChessBase"]
[SourceQuality "1"]
[TimeControl "40/5400+30:1800+30"]

1. e4 {[%emt 0:00:00]} e5 {[%emt 0:00:00]} 2. Nf3 {[%emt 0:00:00]} Nc6 {[%emt 0:00:00]} 3. Bb5 {[%emt 0:00:00]} a6 {[%emt 0:00:05]} 4. Ba4 {[%emt 0:00:00]} Nf6 {[%emt 0:00:09]} 5. O-O {[%emt 0:00:00]} Be7 {[%emt 0:00:10]} 6. Re1 {[%emt 0:00:00]} b5 {[%emt 0:00:07]} 7. Bb3 {[%emt 0:00:01]} O-O {[%emt 0:00:21]} 8. a4 {[%emt 0:00:04]} Bb7 {[%emt 0:00:58]} 9. d3 {[%emt 0:00:09]} d6 {[%emt 0:00:11]} 10. Nbd2 {[%emt 0:00:12]} Qd7 {[%emt 0:00:48]} 11. Nf1 {[%emt 0:02:31]} Rae8 {[%emt 0:06:09]} 12. axb5 {[%emt 0:00:19]} axb5 {[%emt 0:00:03]} 13. c3 {[%emt 0:06:38]} Bd8 {[%emt 0:03:46]} 14. Ng3 {[%emt 0:00:31]} Nb8 {[%emt 0:05:37]} 15. Bg5 {[%emt 0:18:04]} h6 {[%emt 0:02:04]} 16. Bxf6 {[%emt 0:01:34]} Bxf6 {[%emt 0:00:08]} 17. d4 {[%emt 0:00:11]} Qc8 {[%emt 0:11:18]} 18. Ra5 {[%emt 0:19:42]} c6 {[%emt 0:09:29]} 19. Nf5 {[%emt 0:03:10]} Rd8 {[%emt 0:01:33]} 20. d5 {[%emt 0:01:03]} Qc7 {[%emt 0:01:18]} 21. Qa1 {[%emt 0:15:29]} Qb6 {[%emt 0:04:14]} 22. Rd1 {[%emt 0:01:55]} c5 {[%emt 0:05:43]} 23. Bc2 {[%emt 0:02:40]} Na6 {[%emt 0:03:29]} 24. b3 {[%emt 0:02:05]} Nc7 {[%emt 0:00:42]} 25. Bd3 {[%emt 0:01:14]} Ra8 {[%emt 0:02:13]} 26. Rxa8 {[%emt 0:01:16]} Rxa8 {[%emt 0:00:13]} 27. Qb2 {[%emt 0:00:06]} Bc8 {[%emt 0:00:22]} 28. Ne3 {[%emt 0:00:41]} Qa7 {[%emt 0:07:11]} 29. Rb1 {[%emt 0:03:18]} g6 {[%emt 0:02:18]} 30. Nc2 {[%emt 0:02:09]} Bd7 {[%emt 0:05:16]} 31. Ra1 {[%emt 0:00:28]} Qb7 {[%emt 0:01:21]} 32. Ra3 {[%emt 0:02:43]} Bd8 {[%emt 0:02:12]} 33. Ne3 {[%emt 0:02:17]} Ne8 {[%emt 0:01:29]} 34. Qa1 {[%emt 0:00:38]} Rxa3 {[%emt 0:00:35]} 35. Qxa3 {[%emt 0:00:07]} Bb6 {[%emt 0:00:24]} 36. Be2 {[%emt 0:04:37]} f5 {[%emt 0:01:28]} 37. Nd2 {[%emt 0:01:02]} Nf6 {[%emt 0:00:34]} 38. Bf3 {[%emt 0:01:11]} Kg7 {[%emt 0:02:50]} 39. Kf1 {[%emt 0:01:55]} Qc7 {[%emt 0:02:16]} 40. c4 {[%emt 0:02:13]} Ba5 {[%emt 0:00:21]} 41. Qb2 {[%emt 0:32:31]} f4 {[%emt 0:36:32]} 42. Nd1 {[%emt 0:00:24]} g5 {[%emt 0:00:12]} 43. Nc3 {[%emt 0:00:43]} Bxc3 {[%emt 0:02:10]} 44. Qxc3 {[%emt 0:00:06]} b4 {[%emt 0:00:12]} 45. Qa1 {[%emt 0:00:20]} g4 {[%emt 0:00:22]} 46. Bd1 {[%emt 0:00:16]} Be8 {[%emt 0:02:00]} 47. Qa6 {[%emt 0:01:14]} Bg6 {[%emt 0:00:20]} 48. Bc2 {[%emt 0:00:24]} h5 {[%emt 0:00:21]} 49. Ke1 {[%emt 0:02:50]} h4 {[%emt 0:00:28]} 50. Bd3 {[%emt 0:00:45]} Qe7 {[%emt 0:01:12]} 51. Kd1 {[%emt 0:01:09]} Nh5 {[%emt 0:02:21]} 52. Ke1 {[%emt 0:01:20]} g3 {[%emt 0:00:35]} 53. h3 {[%emt 0:00:42]} gxf2+ {[%emt 0:00:16]} 54. Kxf2 {[%emt 0:00:08]} Ng3 {[%emt 0:01:33]} 55. Qc8 {[%emt 0:00:00]} Bh5 {[%emt 0:00:00]} 56. Nf3 {[%emt 0:00:00]} Qa7 {[%emt 0:00:00]} 57. Bb1 {[%emt 0:00:00]} Bxf3 {[%emt 0:00:00]} 58. Kxf3 {[%emt 0:00:00]} Qe7 {[%emt 0:00:00]} 59. Bd3 {[%emt 0:00:00]} Nh5 {[%emt 0:00:00]} 60. Kf2 {[%emt 0:00:00]} Nf6 {[%emt 0:00:00]} 61. Qf5 {[%emt 0:00:00]} Qa7 {[%emt 0:00:00]} 62. Be2 {[%emt 0:00:00]} Qa2 {[%emt 0:00:00]} 63. Qg5+ {[%emt 0:00:00]} Kf7 {[%emt 0:00:00]} 64. Qf5 {[%emt 0:00:00]} Qd2 {[%emt 0:00:00]} 65. Kf1 {[%emt 0:00:00]} Qc1+ {[%emt 0:00:00]} 66. Kf2 {[%emt 0:00:00]} Qe3+ {[%emt 0:00:00]} 67. Kf1 {[%emt 0:00:00]} Qc1+ {[%emt 0:03:33]} 1/2-1/2

[Event "11th LCC FIDE Open 2019"]
[Site "London"]
[Date "2019.11.29"]
[Round "1.17"]
[White "Clarke, Brandon Gi"]
[Black "Ifalore, Michael"]
[Result "1-0"]
[ECO "C95"]
[WhiteElo "2431"]
[BlackElo "1989"]
[Annotator "ChessBase"]
[PlyCount "65"]
[EventDate "2019.11.29"]
[EventType "swiss"]
[EventCountry "ENG"]
[SourceTitle "playchess.com"]
[Source "ChessBase"]
[SourceQuality "1"]
[TimeControl "40/5400+30:1800+30"]

1. e4 {[%emt 0:00:00]} e5 {[%emt 0:00:00]} 2. Nf3 {[%emt 0:00:00]} Nc6 {[%emt 0:00:00]} 3. Bb5 {[%emt 0:00:00]} a6 {[%emt 0:00:00]} 4. Ba4 {[%emt 0:00:00]} Nf6 {[%emt 0:00:00]} 5. O-O {[%emt 0:00:00]} b5 {[%emt 0:00:22]} 6. Bb3 {[%emt 0:00:00]} Be7 {[%emt 0:00:03]} 7. Re1 {[%emt 0:00:23]} O-O {[%emt 0:00:19]} 8. c3 {[%emt 0:00:14]} d6 {[%emt 0:00:03]} 9. h3 {[%emt 0:00:07]} Nb8 {[%emt 0:00:05]} 10. d4 {[%emt 0:00:05]} Nbd7 {[%emt 0:00:03]} 11. Nbd2 {[%emt 0:00:11]} Bb7 {[%emt 0:00:08]} 12. Bc2 {[%emt 0:00:16]} Re8 {[%emt 0:00:24]} 13. Nf1 {[%emt 0:00:09]} Bf8 {[%emt 0:00:06]} 14. Ng3 {[%emt 0:00:06]} g6 {[%emt 0:00:04]} 15. a4 {[%emt 0:00:09]} c5 {[%emt 0:00:21]} 16. d5 {[%emt 0:00:02]} c4 {[%emt 0:00:07]} 17. Bg5 {[%emt 0:00:06]} Nc5 {[%emt 0:00:25]} 18. Qd2 {[%emt 0:00:41]} Be7 {[%emt 0:00:13]} 19. Bh6 {[%emt 0:00:12]} Nfd7 {[%emt 0:00:28]} 20. Nh2 {[%emt 0:00:24]} Nxa4 {[%emt 0:07:22]} 21. Bxa4 {[%emt 0:02:35]} bxa4 {[%emt 0:00:03]} 22. Rxa4 {[%emt 0:00:19]} a5 {[%emt 0:00:05]} 23. Ng4 {[%emt 0:01:35]} Ba6 {[%emt 0:03:44]} 24. f4 {[%emt 0:01:56]} Nc5 {[%emt 0:18:26]} 25. Raa1 {[%emt 0:01:09]} Nd3 {[%emt 0:00:15]} 26. Rf1 {[%emt 0:02:19]} Qb6+ {[%emt 0:01:38]} 27. Kh2 {[%emt 0:08:41]} Bc8 {[%emt 0:01:45]} 28. f5 {[%emt 0:03:10]} Qxb2 {[%emt 0:00:43]} 29. Qe3 {[%emt 0:05:54]} gxf5 {[%emt 0:32:33]} 30. Nxf5 {[%emt 0:04:50]} Bxf5 {[%emt 0:03:14]} 31. Rxf5 {[%emt 0:02:19]} Nf4 {[%emt 0:00:59]} 32. Bxf4 {[%emt 0:02:51]} Qxa1 {[%emt 0:00:53]} 33. Nh6+ {[%emt 0:00:24]} 1-0

[Event "11th LCC FIDE Open 2019"]
[Site "London"]
[Date "2019.11.29"]
[Round "1.19"]
[White "Merry, Alan B"]
[Black "Modi, Kishan J"]
[Result "1-0"]
[ECO "A21"]
[WhiteElo "2426"]
[BlackElo "1978"]
[Annotator "ChessBase"]
[PlyCount "53"]
[EventDate "2019.11.29"]
[EventType "swiss"]
[EventCountry "ENG"]
[SourceTitle "playchess.com"]
[Source "ChessBase"]
[SourceQuality "1"]
[TimeControl "40/5400+30:1800+30"]

1. c4 {[%emt 0:29:55]} e5 {[%emt 0:00:08]} 2. Nc3 {[%emt 0:00:05]} d6 {[%emt 0:00:06]} 3. g3 {[%emt 0:00:04]} f5 {[%emt 0:00:07]} 4. Bg2 {[%emt 0:00:04]} Nf6 {[%emt 0:00:06]} 5. e3 {[%emt 0:00:10]} Be7 {[%emt 0:00:12]} 6. Nge2 {[%emt 0:00:04]} c6 {[%emt 0:00:16]} 7. O-O {[%emt 0:00:08]} O-O {[%emt 0:00:06]} 8. b3 {[%emt 0:00:29]} Na6 {[%emt 0:06:33]} 9. Bb2 {[%emt 0:01:13]} Qc7 {[%emt 0:03:52]} 10. Rc1 {[%emt 0:05:37]} Bd7 {[%emt 0:06:34]} 11. f4 {[%emt 0:03:57]} e4 {[%emt 0:01:20]} 12. d3 {[%emt 0:03:28]} Qb6 {[%emt 0:03:05]} 13. Nd4 {[%emt 0:19:13]} d5 {[%emt 0:00:55]} 14. cxd5 {[%emt 0:03:04]} cxd5 {[%emt 0:02:01]} 15. dxe4 {[%emt 0:03:41]} dxe4 {[%emt 0:00:20]} 16. h3 {[%emt 0:00:04]} Rac8 {[%emt 0:03:39]} 17. Rf2 {[%emt 0:04:20]} Nb4 {[%emt 0:02:19]} 18. Bf1 {[%emt 0:01:22]} Kh8 {[%emt 0:03:35]} 19. Rd2 {[%emt 0:06:56]} Bc5 {[%emt 0:06:29]} 20. Kh2 {[%emt 0:04:35]} Nbd5 {[%emt 0:01:36]} 21. Nxd5 {[%emt 0:07:07]} Nxd5 {[%emt 0:00:44]} 22. Nxf5 {[%emt 0:12:02]} Bxf5 {[%emt 0:11:26]} 23. Rxd5 {[%emt 0:00:06]} Bxe3 {[%emt 0:01:00]} 24. Rxc8 {[%emt 0:08:26]} Bxc8 {[%emt 0:00:42]} 25. Rg5 {[%emt 0:00:45]} Rg8 {[%emt 0:01:57]} 26. Bc4 {[%emt 0:01:59]} Be6 {[%emt 0:00:36]} 27. Qa1 {[%emt 0:02:34]} 1-0

[Event "11th LCC FIDE Open 2019"]
[Site "London"]
[Date "2019.11.29"]
[Round "1.20"]
[White "De Coverly, Roger D"]
[Black "Gschnitzer, Adrian"]
[Result "0-1"]
[ECO "B11"]
[WhiteElo "1974"]
[BlackElo "2422"]
[Annotator "ChessBase"]
[PlyCount "58"]
[EventDate "2019.11.29"]
[EventType "swiss"]
[EventCountry "ENG"]
[SourceTitle "playchess.com"]
[Source "ChessBase"]
[SourceQuality "1"]
[TimeControl "40/5400+30:1800+30"]

1. e4 {[%emt 0:00:00]} c6 {[%emt 0:00:00]} 2. Nc3 {[%emt 0:00:00]} d5 {[%emt 0:00:00]} 3. Nf3 {[%emt 0:00:04]} Bg4 {[%emt 0:00:00]} 4. h3 {[%emt 0:00:18]} Bxf3 {[%emt 0:00:06]} 5. Qxf3 {[%emt 0:00:05]} e6 {[%emt 0:00:16]} 6. Be2 {[%emt 0:01:41]} Nd7 {[%emt 0:00:12]} 7. d3 {[%emt 0:02:08]} g6 {[%emt 0:06:48]} 8. O-O {[%emt 0:02:09]} Bg7 {[%emt 0:00:22]} 9. Qg3 {[%emt 0:01:52]} Ne7 {[%emt 0:01:11]} 10. Kh1 {[%emt 0:02:25]} O-O {[%emt 0:02:21]} 11. f4 {[%emt 0:02:44]} b5 {[%emt 0:04:09]} 12. Bf3 {[%emt 0:04:12]} b4 {[%emt 0:13:24]} 13. Nd1 {[%emt 0:03:38]} a5 {[%emt 0:03:35]} 14. Ne3 {[%emt 0:08:55]} Kh8 {[%emt 0:08:01]} 15. h4 {[%emt 0:05:41]} f5 {[%emt 0:01:43]} 16. e5 {[%emt 0:03:56]} Nxe5 {[%emt 0:00:47]} 17. fxe5 {[%emt 0:00:44]} f4 {[%emt 0:00:16]} 18. Qh2 {[%emt 0:02:29]} fxe3 {[%emt 0:01:17]} 19. Bxe3 {[%emt 0:00:44]} Nf5 {[%emt 0:02:41]} 20. Bg5 {[%emt 0:01:51]} Qc7 {[%emt 0:00:37]} 21. Rae1 {[%emt 0:02:53]} Rf7 {[%emt 0:07:40]} 22. h5 {[%emt 0:06:11]} Kg8 {[%emt 0:01:14]} 23. h6 {[%emt 0:01:35]} Bf8 {[%emt 0:04:12]} 24. c3 {[%emt 0:04:04]} Be7 {[%emt 0:03:02]} 25. Bxe7 {[%emt 0:02:14]} Qxe7 {[%emt 0:01:37]} 26. Bg4 {[%emt 0:02:28]} Raf8 {[%emt 0:01:02]} 27. Bxf5 {[%emt 0:03:57]} Rxf5 {[%emt 0:00:14]} 28. Kg1 {[%emt 0:00:24]} bxc3 {[%emt 0:01:20]} 29. Rxf5 {[%emt 0:02:23]} Qc5+ {[%emt 0:01:00]} 0-1

[Event "11th LCC FIDE Open 2019"]
[Site "London"]
[Date "2019.11.29"]
[Round "1.21"]
[White "McDonald, Neil R"]
[Black "Karumazondo, Ragarirai Ernest"]
[Result "1-0"]
[ECO "B33"]
[WhiteElo "2412"]
[BlackElo "1972"]
[Annotator "ChessBase"]
[PlyCount "89"]
[EventDate "2019.11.29"]
[EventType "swiss"]
[EventCountry "ENG"]
[SourceTitle "playchess.com"]
[Source "ChessBase"]
[SourceQuality "1"]
[TimeControl "40/5400+30:1800+30"]

1. e4 {[%emt 0:00:00]} c5 {[%emt 0:01:49]} 2. Nf3 {[%emt 0:00:00]} Nc6 {[%emt 0:00:16]} 3. d4 {[%emt 0:01:30]} cxd4 {[%emt 0:02:26]} 4. Nxd4 {[%emt 0:00:13]} Nf6 {[%emt 0:00:08]} 5. Nc3 {[%emt 0:00:04]} e5 {[%emt 0:00:06]} 6. Ndb5 {[%emt 0:00:43]} d6 {[%emt 0:00:16]} 7. Bg5 {[%emt 0:00:47]} a6 {[%emt 0:00:27]} 8. Na3 {[%emt 0:00:05]} b5 {[%emt 0:00:40]} 9. Nd5 {[%emt 0:00:09]} Be7 {[%emt 0:01:03]} 10. Bxf6 {[%emt 0:00:11]} Bxf6 {[%emt 0:00:14]} 11. c4 {[%emt 0:02:14]} b4 {[%emt 0:03:19]} 12. Nc2 {[%emt 0:00:05]} a5 {[%emt 0:00:13]} 13. g3 {[%emt 0:01:00]} O-O {[%emt 0:04:33]} 14. Bg2 {[%emt 0:00:18]} Bg5 {[%emt 0:05:03]} 15. O-O {[%emt 0:05:38]} Bh6 {[%emt 0:07:56]} 16. Qd3 {[%emt 0:05:21]} g6 {[%emt 0:06:30]} 17. Rad1 {[%emt 0:02:08]} Ra6 {[%emt 0:09:54]} 18. b3 {[%emt 0:08:33]} Kh8 {[%emt 0:04:50]} 19. Nde3 {[%emt 0:05:10]} Bg7 {[%emt 0:28:26]} 20. Qxd6 {[%emt 0:04:10]} Nd4 {[%emt 0:00:39]} 21. Qxd8 {[%emt 0:00:59]} Rxd8 {[%emt 0:00:04]} 22. Nxd4 {[%emt 0:01:33]} exd4 {[%emt 0:02:27]} 23. Nd5 {[%emt 0:00:27]} f5 {[%emt 0:01:53]} 24. Rfe1 {[%emt 0:03:50]} Re6 {[%emt 0:03:13]} 25. Nf4 {[%emt 0:02:36]} Ree8 {[%emt 0:02:16]} 26. Nd3 {[%emt 0:03:22]} fxe4 {[%emt 0:03:55]} 27. Bxe4 {[%emt 0:01:36]} Re7 {[%emt 0:01:02]} 28. Bc6 {[%emt 0:06:27]} Rxe1+ {[%emt 0:02:32]} 29. Rxe1 {[%emt 0:00:21]} Bf5 {[%emt 0:00:22]} 30. Be4 {[%emt 0:00:39]} Re8 {[%emt 0:02:54]} 31. Bxf5 {[%emt 0:01:17]} Rxe1+ {[%emt 0:00:03]} 32. Nxe1 {[%emt 0:00:06]} gxf5 {[%emt 0:00:05]} 33. Kf1 {[%emt 0:00:55]} Kg8 {[%emt 0:00:21]} 34. Ke2 {[%emt 0:00:19]} f4 {[%emt 0:03:20]} 35. Kd3 {[%emt 0:00:40]} fxg3 {[%emt 0:01:02]} 36. hxg3 {[%emt 0:00:12]} Kf7 {[%emt 0:00:32]} 37. Nf3 {[%emt 0:00:24]} Ke6 {[%emt 0:00:53]} 38. Nxd4+ {[%emt 0:00:28]} Kd7 {[%emt 0:00:18]} 39. c5 {[%emt 0:00:32]} h5 {[%emt 0:00:29]} 40. c6+ {[%emt 0:03:25]} Kc8 {[%emt 0:00:49]} 41. Ke4 {[%emt 0:31:51]} Bf6 {[%emt 0:31:07]} 42. Kd5 {[%emt 0:01:01]} Kc7 {[%emt 0:01:40]} 43. Nb5+ {[%emt 0:00:57]} Kd8 {[%emt 0:00:00]} 44. c7+ {[%emt 0:00:00]} Kd7 {[%emt 0:00:00]} 45. Nd6 {[%emt 0:00:32]} 1-0

[Event "11th LCC FIDE Open 2019"]
[Site "London"]
[Date "2019.11.29"]
[Round "1.22"]
[White "Millward, Kevin P"]
[Black "Percivaldi, Martin"]
[Result "0-1"]
[ECO "D02"]
[WhiteElo "1967"]
[BlackElo "2384"]
[Annotator "ChessBase"]
[PlyCount "58"]
[EventDate "2019.11.29"]
[EventType "swiss"]
[EventCountry "ENG"]
[SourceTitle "playchess.com"]
[Source "ChessBase"]
[SourceQuality "1"]
[TimeControl "40/5400+30:1800+30"]

1. d4 {[%emt 0:00:00]} d5 {[%emt 0:00:00]} 2. Bf4 {[%emt 0:00:20]} Nf6 {[%emt 0:00:30]} 3. e3 {[%emt 0:01:45]} c5 {[%emt 0:00:29]} 4. c3 {[%emt 0:01:35]} Nc6 {[%emt 0:00:26]} 5. Nd2 {[%emt 0:01:14]} e6 {[%emt 0:00:53]} 6. Ngf3 {[%emt 0:00:56]} cxd4 {[%emt 0:01:28]} 7. exd4 {[%emt 0:02:12]} Nh5 {[%emt 0:00:12]} 8. Bg5 {[%emt 0:11:22]} f6 {[%emt 0:01:34]} 9. Ne5 {[%emt 0:30:06]} g6 {[%emt 0:05:48]} 10. Bh4 {[%emt 0:03:46]} Bd6 {[%emt 0:04:48]} 11. Nd3 {[%emt 0:14:02]} O-O {[%emt 0:02:21]} 12. Be2 {[%emt 0:05:19]} Ng7 {[%emt 0:00:24]} 13. f4 {[%emt 0:02:45]} Qc7 {[%emt 0:04:24]} 14. O-O {[%emt 0:09:13]} Nf5 {[%emt 0:00:19]} 15. Bf2 {[%emt 0:01:03]} Bxf4 {[%emt 0:01:45]} 16. Nxf4 {[%emt 0:00:42]} Qxf4 {[%emt 0:00:08]} 17. Nb3 {[%emt 0:01:25]} a5 {[%emt 0:05:01]} 18. g4 {[%emt 0:04:44]} Nd6 {[%emt 0:06:10]} 19. Nc5 {[%emt 0:04:18]} Ne4 {[%emt 0:12:01]} 20. Nxe4 {[%emt 0:01:31]} Qxe4 {[%emt 0:00:31]} 21. Qd2 {[%emt 0:01:18]} e5 {[%emt 0:01:42]} 22. Bh4 {[%emt 0:00:50]} exd4 {[%emt 0:02:00]} 23. Rxf6 {[%emt 0:00:21]} Bxg4 {[%emt 0:03:23]} 24. Bd3 {[%emt 0:00:40]} Qe3+ {[%emt 0:00:10]} 25. Qxe3 {[%emt 0:00:02]} dxe3 {[%emt 0:00:10]} 26. Re1 {[%emt 0:00:54]} Ne5 {[%emt 0:00:51]} 27. Rxe3 {[%emt 0:00:32]} Nf3+ {[%emt 0:00:13]} 28. Rexf3 {[%emt 0:00:32]} Bxf3 {[%emt 0:00:08]} 29. Kf2 {[%emt 0:00:26]} Rxf6 {[%emt 0:00:20]} 0-1